[Event "Mitropa Cup Women 2024"]
[Site "Apolda"]
[Date "2024.02.20"]
[Round "6.13"]
[White "Medic, Mirjana"]
[Black "Urh, Zala"]
[Result "0-1"]
[ECO "D38"]
[WhiteElo "2151"]
[BlackElo "2290"]
[Annotator "TA"]
[PlyCount "116"]
[EventDate "2024.02.15"]
[EventType "team-tourn"]
[EventCountry "GER"]
[SourceTitle "playchess.com"]
[Source "ChessBase"]
[SourceQuality "1"]
[WhiteTeam "Croatia"]
[BlackTeam "Slovenia"]
[WhiteTeamCountry "CRO"]
[BlackTeamCountry "SLO"]
[TimeControl "40/5400+30:1800+30"]

{[%evp 12,116,22,18,11,20,5,-2,0,-8,7,-6,0,-7,-7,-8,0,-16,-23,-3,-13,-29,0,-8,-18,-84,-107,-93,0,0,0,0,0,-95,-91,-93,-83,-118,-118,-121,-95,-131,-74,-83,-75,-76,-76,-131,-131,-141,-130,-165,-172,-166,-170,-168,-164,-189,-192,-266,-254,-334,-346,-431,-380,-350,-335,-382,-382,-359,-359,-458,-458,-463,-461,-515,-439,-496,-427,-636,-556,-568,-536,-509,-604,-627,-604,-560,-565,-910,-901,-911,-912,-2021,-1286,-1944,-1307,-1755,-781,-29957,-1714,-1758,-1473,-1753,-1709,-1748,-1634]} 1. d4 {[%emt 0:00:03]} Nf6 {[%emt 0:00:23]} 2. Nf3 {[%emt 0:00:08]} d5 {[%emt 0:00:05]} 3. c4 {[%emt 0:00:11]} e6 {[%emt 0:00:08]} 4. Nc3 {[%emt 0:00:09]} Bb4 {[%emt 0:00:11]} 5. Qa4+ {[%emt 0:01:04]} Nc6 {[%emt 0:00:11][%cal Bb8c6,Bc6e7,Be7g6,Bg6h4,Bh4f3][%mdl 32]} 6. e3 {[%emt 0:00:07]} O-O {[%emt 0:00:20]} 7. Bd2 {[%emt 0:00:20]} dxc4 {[%emt 0:00:38]} 8. Bxc4 {[%emt 0:00:12]} Bd6 {[%emt 0:00:22]} 9. Rd1 {[%emt 0:06:43]} e5 {[%emt 0:10:39] Die Stellung ist ausgeglichen.} 10. d5 {[%emt 0:07:32]} Ne7 {[%emt 0:10:13]} 11. e4 {[%emt 0:01:11] Pariert Bf5.} a6 {[%emt 0:01:54]} 12. Qc2 {[%emt 0:02:16]} Ng6 {[%emt 0:05:55]} 13. h3 {[%emt 0:04:23]} Nh5 {[%emt 0:06:13]} 14. Ne2 {[%emt 0:05:38]} f5 {[%emt 0:06:40]} 15. Bd3 {[%emt 0:03:35]} f4 {[%emt 0:03:44]} 16. Bc3 {[%emt 0:09:20]} b5 {[%emt 0:13:15]} 17. a3 {[%emt 0:03:41]} Nh4 {[%emt 0:02:18]} 18. Kd2 {[%emt 0:02:53]} (18. Bxe5 $2 Nxf3+ (18... Nxg2+ 19. Kd2 $15) 19. gxf3 Bxe5 $19) (18. Nxe5 $2 Nxg2+ 19. Kd2 f3 20. Nxf3 Rxf3 $19) (18. Nxh4 $11 {hält das Gleichgewicht.} Qxh4 19. Ng1) 18... Nxf3+ $17 {[%emt 0:06:22]} (18... Nxg2 $6 19. Kc1 $15 (19. Nxe5 $2 f3 $19) (19. Bxe5 Bxe5 20. Rdg1 Ng3 $19)) 19. gxf3 {[%emt 0:00:07]} c5 {[%emt 0:00:07]} (19... Bd7 $17) 20. dxc6 $11 {[%emt 0:02:39]} Be6 {[%emt 0:00:09]} 21. Bb4 {[%emt 0:01:40]} Rc8 {[%emt 0:05:25]} (21... Bxb4+ 22. axb4 Qd6 23. Qc5 Qxc5 24. bxc5) 22. Ke1 {[%emt 0:05:51]} (22. Rc1 $11) 22... Bxb4+ $17 {[%emt 0:11:00]} 23. axb4 {[%emt 0:00:03][%cal Od3b5]} Qd6 {[%emt 0:00:02][%csl LRb4,LRc6]} 24. Qc5 {[%emt 0:04:48]} Rxc6 {[%emt 0:00:26]} 25. Qxd6 {[%emt 0:00:09]} Rxd6 {[%emt 0:00:03]} 26. Bc2 {[%emt 0:04:16]} Rfd8 {[%emt 0:00:55]} ({Vorzuziehen ist} 26... Rxd1+ 27. Bxd1 Rd8) 27. Rxd6 {[%emt 0:00:25]} Rxd6 {[%emt 0:00:05]} 28. Nc1 {[%emt 0:00:54]} Nf6 {[%emt 0:03:31] Schwarz steht deutlich aktiver.} 29. h4 {[%emt 0:03:05]} ({Besser ist} 29. Bb3) 29... Rd4 {[%emt 0:03:25]} 30. Nd3 {[%emt 0:02:04]} Nd7 {[%emt 0:00:05]} 31. Kd2 {[%emt 0:01:20]} Bc4 {[%emt 0:03:24]} 32. Kc3 {[%emt 0:01:06][%cal Od3e5] [#]} Bxd3 {[%emt 0:00:36]} 33. Bxd3 $19 {[%emt 0:00:03][%mdl 4096] Endspiel. KRB-KRN} Nb8 {[%emt 0:00:09]} 34. Rg1 {[%emt 0:01:26]} Nc6 {[%emt 0:04:03][%cal Og8f8]} 35. Rg5 {[%emt 0:01:30]} (35. Ra1 $142) 35... g6 {[%emt 0:00:28]} (35... Nxb4 36. Rxe5 Rxd3+ 37. Kxb4) 36. Bb1 {[%emt 0:01:12]} Kg7 {[%emt 0:01:02]} (36... Rxb4 37. Ba2+ Kg7 38. Bd5 $17) 37. Ba2 {[%emt 0:01:29][%cal Og5e5] Verhindert Rc4+.} Kf6 {[%emt 0:00:29]} (37... Rxb4 38. Bd5 h6 39. Rxe5 (39. Bxc6 $2 Rc4+ 40. Kd2 hxg5 $19) 39... Nxe5 40. Kxb4 $19) 38. Bg8 {[%emt 0:00:39]} h6 {[%emt 0:00:33]} ({Auf keinen Fall} 38... Rxb4 39. Bxh7 (39. Bd5 $2 a5 $19) 39... Rc4+ 40. Kd2 Rd4+ 41. Ke2) 39. Rg1 {[%emt 0:00:11]} Nxb4 {[%emt 0:02:35] [#] Und ...a5 würde nun gewinnen.} 40. Ra1 {[%emt 0:00:10]} Ke7 {[%emt 0:01:26]} 41. b3 {[%emt 0:33:33]} Kd6 {[%emt 0:09:36] ...Kc5 ist eine echte Drohung.} 42. Bc4 {[%emt 0:00:00]} Kc5 {[%emt 0:06:39]} 43. Be2 {[%emt 0:00:00]} Rd6 {[%emt 0:00:17]} 44. Bf1 {[%emt 0:00:00]} Nc6 {[%emt 0:03:26]} 45. Rxa6 {[%emt 0:00:00]} (45. Ra2 $142) 45... b4+ {[%emt 0:01:17]} 46. Kb2 {[%emt 0:00:00]} Rd2+ {[%emt 0:00:54]} 47. Kc1 {[%emt 0:00:00]} Rxf2 {[%emt 0:00:07]} 48. Bc4 {[%emt 0:00:00]} Rxf3 {[%emt 0:01:38]} 49. Bd5 {[%emt 0:00:00]} Nd4 {[%emt 0:04:28]} 50. Rxg6 {[%emt 0:00:00]} Nxb3+ {[%emt 0:01:18]} 51. Kb2 {[%emt 0:00:00]} Nd4 {[%emt 0:00:16] Und jetzt ...Rf2+ wäre schön.} 52. Rxh6 {[%emt 0:00:00]} Rf2+ {[%emt 0:00:50]} 53. Kb1 {[%emt 0:00:00]} b3 {[%emt 0:02:27]} 54. Rh8 {[%emt 0:00:00]} Rh2 {[%emt 0:00:27] ( -> ...f3)} 55. Re8 {[%emt 0:00:00]} Kb4 {[%emt 0:01:02]} (55... f3 $142 56. Rb8 Rh1+ (56... Rxh4 $2 57. Kb2 $19) 57. Kb2 f2 (57... Rxh4 $2 58. Ka3 $19) (57... Rh2+ $2 58. Kc3 $19) 58. Rc8+ Kb4 59. Bc4 f1=B (59... f1=R 60. Bxf1 Rxf1 61. Rb8+ Nb5 62. Rxb5+ Kxb5 63. Kxb3 Rf3+ 64. Kc2 Kc4 65. Kd2 Rh3 66. h5 Kd4 67. Ke2 Rxh5 68. Kf3 Rg5 69. Ke2 Rg6 70. Kd2 Rg2+ 71. Kd1 Ke3 72. Kc1 Kd3 73. Kb1 Kc3 74. Ka1 Kb3 75. Kb1 Rg1#) 60. Bxb3 Rh2+ (60... Nxb3 {wird mattgesetzt.} 61. Rb8+ Bb5 62. Rxb5+ Kxb5 63. Kxb3 Rh3+ 64. Kc2 Kc4 65. Kd2 Rxh4 66. Ke3 Rf4 67. Ke2 Kd4 68. Kd2 Rf2+ 69. Ke1 Ke3 70. Kd1 Kd3 71. Kc1 Re2 72. Kd1 Rxe4 73. Kc1 Rb4 74. Kd1 Rb1#) 61. Bc2 Bd3 (61... Rxh4 $2 62. Rf8 $19) 62. Rb8+ Kc5 63. Kc3 Bxc2 64. Rc8+ Nc6 65. h5 Bxe4 66. h6 Rxh6 (66... Rh3+ $2 67. Kd2 $19) 67. Ra8 Rh2 (67... Rh3+ $2 68. Kd2 $19) 68. Ra5+ Kd6 69. Ra6 Rc2+ 70. Kb3 Kc5 71. Ra2 Nd4+ 72. Ka3 Nb5+ 73. Kb3 Rc3+ 74. Kb2 Kb4 75. Ra7 Rc2+ (75... Nxa7 {führt zum Matt.} 76. Ka2 Rb3 77. Ka1 Nb5 78. Ka2 Nc3+ 79. Ka1 Rb1#) 76. Ka1 Rc1+ (76... Nxa7 $2 77. Kb1 Ka3 78. Ka1 Rc1#) 77. Ka2 Nc3+ 78. Kb2 Rb1#) 56. Rb8+ {[%emt 0:00:00] Schwarz steht klar auf Gewinn.} Kc3 {[%emt 0:00:07][%cal Rh2h1]} 57. Rc8+ {[%emt 0:00:00]} Kd3 {[%emt 0:00:10]} 58. Re8 {[%emt 0:00:00]} f3 {[%emt 0:00:43] Gewichteter Fehlerwert: Weiß=0.56/Schwarz=0.17 (sehr präzise) .  Fehler:       	Weiß=5     	Schwarz=2     Ungenau:       	Weiß=3     	Schwarz=1     OK:         	Weiß=14    	Schwarz=27    Bester:       	Weiß=4     	Schwarz=3} 0-1

[Event "Mitropa Cup Women 2024"]
[Site "Apolda"]
[Date "2024.02.20"]
[Round "6.14"]
[White "Shpanko, Nadiia"]
[Black "Berke, Ana"]
[Result "1/2-1/2"]
[ECO "E14"]
[WhiteElo "2179"]
[BlackElo "2092"]
[Annotator "RC"]
[PlyCount "113"]
[EventDate "2024.02.15"]
[EventType "team-tourn"]
[EventCountry "GER"]
[SourceTitle "playchess.com"]
[Source "ChessBase"]
[SourceQuality "1"]
[WhiteTeam "Slovenia"]
[BlackTeam "Croatia"]
[WhiteTeamCountry "SLO"]
[BlackTeamCountry "CRO"]
[TimeControl "40/5400+30:1800+30"]

1. c4 {[%emt 0:00:03]} e6 {[%emt 0:00:21]} 2. Nf3 {[%emt 0:00:43]} d5 {[%emt 0:00:22]} 3. e3 {[%emt 0:02:16]} Nf6 {[%emt 0:00:54]} 4. Nc3 {[%emt 0:02:03]} Be7 {[%emt 0:00:43]} 5. d4 {[%emt 0:00:54]} O-O {[%emt 0:00:43]} 6. Bd3 {[%emt 0:00:26]} b6 {[%emt 0:03:32]} 7. O-O {[%emt 0:01:50]} Bb7 {[%emt 0:03:44]} 8. Qe2 {[%emt 0:13:38]} Ne4 {[%emt 0:06:44]} 9. Nd2 {[%emt 0:01:31]} f5 {[%emt 0:03:20]} 10. f3 {[%emt 1:12:06]} Nxc3 {[%emt 0:03:58]} 11. bxc3 {[%emt 0:00:00]} c5 12. Rb1 {[%emt 0:00:00]} Nc6 13. Nb3 {[%emt 0:00:00]} Qc7 14. Ba3 {[%emt 0:02:00]} Bd6 {[%emt 0:13:36]} 15. f4 {[%emt 0:00:00]} Nd8 16. Nd2 {[%emt 0:01:00]} Rc8 {[%emt 1:00:33]} 17. h3 {[%emt 0:00:00]} Ba6 {[%emt 0:00:00]} 18. cxd5 {[%emt 0:00:00]} Bxd3 {[%emt 0:00:00]} 19. Qxd3 {[%emt 0:00:00]} cxd4 {[%emt 0:00:00]} 20. cxd4 {[%emt 0:00:00]} Bxa3 {[%emt 0:00:00]} 21. Qxa3 {[%emt 0:00:00]} Qc3 {[%emt 0:00:00]} 22. Qxc3 {[%emt 0:00:00]} Rxc3 {[%emt 0:00:00]} 23. dxe6 {[%emt 0:00:00]} Nxe6 {[%emt 0:00:00]} 24. Rfe1 {[%emt 0:00:00]} Rfc8 {[%emt 0:00:00]} 25. Nb3 {[%emt 0:00:00]} Nc7 {[%emt 0:00:00]} 26. a4 {[%emt 0:00:50]} Nd5 {[%emt 0:00:00]} 27. a5 {[%emt 0:00:31]} Rxe3 {[%emt 0:00:00]} 28. axb6 {[%emt 0:00:40]} axb6 {[%emt 0:00:00]} 29. Rxe3 {[%emt 0:00:31]} Nxe3 {[%emt 0:00:00]} 30. Re1 {[%emt 0:00:45]} Rc3 {[%emt 0:00:00]} 31. Nd2 {[%emt 0:01:19]} Rd3 {[%emt 0:00:00]} 32. Nf3 {[%emt 0:00:21]} Rd1 {[%emt 0:00:00]} 33. Kf2 {[%emt 0:02:18]} Rxe1 {[%emt 0:00:00]} 34. Nxe1 {[%emt 0:00:06]} Nd5 {[%emt 0:00:00]} 35. Kf3 {[%emt 0:00:37]} h5 {[%emt 0:01:04]} 36. g4 {[%emt 0:00:26]} fxg4+ {[%emt 0:02:56]} 37. hxg4 {[%emt 0:00:03]} h4 {[%emt 0:02:08]} 38. Nd3 {[%emt 0:00:48]} b5 {[%emt 0:01:04]} 39. g5 {[%emt 0:00:27]} b4 {[%emt 0:01:10]} 40. Kg4 {[%emt 0:00:32]} b3 {[%emt 0:00:37]} 41. Kxh4 {[%emt 0:04:32]} Nxf4 {[%emt 0:01:37]} 42. Nb2 {[%emt 0:01:18]} Kf7 {[%emt 0:01:41]} 43. Kg4 {[%emt 0:00:15]} Ne2 {[%emt 0:01:14]} 44. d5 {[%emt 0:00:29]} Nc3 {[%emt 0:02:10]} 45. d6 {[%emt 0:00:16]} Ke6 {[%emt 0:00:45]} 46. d7 {[%emt 0:08:43]} Kxd7 {[%emt 0:00:17]} 47. Kf5 {[%emt 0:00:13]} Ke7 {[%emt 0:01:20]} 48. Ke5 {[%emt 0:00:29]} Kf7 {[%emt 0:02:38]} 49. Kd4 {[%emt 0:00:15]} Ne2+ {[%emt 0:00:31]} 50. Kd3 {[%emt 0:00:47]} Nc1+ {[%emt 0:00:19]} 51. Kd2 {[%emt 0:00:12]} Na2 {[%emt 0:00:13]} 52. Nd3 {[%emt 0:00:30]} Kg6 {[%emt 0:01:22]} 53. Nc5 {[%emt 0:00:28]} b2 {[%emt 0:00:50]} 54. Kc2 {[%emt 0:00:12]} Kxg5 {[%emt 0:00:52]} 55. Ne6+ {[%emt 0:00:18]} Kf6 {[%emt 0:00:32]} 56. Nxg7 {[%emt 0:00:06]} Kxg7 {[%emt 0:00:10]} 57. Kxb2 {[%emt 0:00:02]} 1/2-1/2

[Event "Mitropa Cup Women 2024"]
[Site "Apolda"]
[Date "2024.02.20"]
[Round "6.15"]
[White "Vujnovic, Patricija"]
[Black "Vidic, Teja"]
[Result "1/2-1/2"]
[ECO "D32"]
[WhiteElo "2104"]
[BlackElo "2132"]
[Annotator "NA RC"]
[PlyCount "61"]
[EventDate "2024.02.15"]
[EventType "team-tourn"]
[EventCountry "GER"]
[SourceTitle "playchess.com"]
[Source "ChessBase"]
[SourceQuality "1"]
[WhiteTeam "Croatia"]
[BlackTeam "Slovenia"]
[WhiteTeamCountry "CRO"]
[BlackTeamCountry "SLO"]
[TimeControl "40/5400+30:1800+30"]

1. Nf3 {[%emt 1:31:00]} d5 {[%emt 0:00:09]} 2. e3 {[%emt 0:00:00]} Nf6 {[%emt 0:04:29]} 3. c4 {[%emt 0:00:00]} e6 {[%emt 0:00:03]} 4. b3 {[%emt 0:00:00]} Be7 {[%emt 0:00:19]} 5. Bb2 {[%emt 0:00:00]} O-O {[%emt 0:00:06]} 6. Nc3 {[%emt 0:00:00]} c5 {[%emt 0:00:34]} 7. cxd5 {[%emt 0:00:00]} exd5 {[%emt 0:00:16]} 8. d4 {[%emt 0:00:00]} Bg4 {[%emt 0:08:14]} 9. Be2 {[%emt 0:00:00]} Nc6 {[%emt 0:00:14]} 10. dxc5 {[%emt 0:00:00]} Bxc5 {[%emt 0:00:28]} 11. O-O {[%emt 0:00:00]} a6 {[%emt 0:08:14]} 12. Na4 {[%emt 0:00:00]} Ba7 $11 {[%emt 0:08:13]} 13. Rc1 {[%emt 0:00:00]} Ne4 {[%emt 0:15:52]} 14. h3 {[%emt 0:00:00]} Bh5 {[%emt 0:02:44]} 15. Nd4 {[%emt 0:00:00]} Bxe2 {[%emt 0:07:48]} 16. Qxe2 {[%emt 0:00:00]} Nxd4 {[%emt 0:02:10]} 17. Bxd4 {[%emt 0:00:00]} Bxd4 {[%emt 0:00:06]} 18. exd4 {[%emt 0:00:00]} Re8 {[%emt 0:03:35]} 19. Qb2 {[%emt 0:00:00]} Qd6 {[%emt 0:08:35]} 20. Rc2 {[%emt 0:00:00]} Re7 {[%emt 0:00:21]} 21. Rfc1 {[%emt 0:00:00]} Rae8 {[%emt 0:00:06]} 22. Rc8 {[%emt 0:00:00]} g6 {[%emt 0:02:02]} 23. Rxe8+ {[%emt 0:00:00]} Rxe8 {[%emt 0:00:05]} 24. Nc5 {[%emt 0:00:00]} Re7 {[%emt 0:02:29]} 25. Nxe4 {[%emt 0:00:00]} Rxe4 {[%emt 0:01:13]} 26. Qc3 {[%emt 0:00:00]} Kg7 {[%emt 0:02:41]} 27. Re1 {[%emt 0:00:00]} Qf4 {[%emt 0:01:41]} 28. Rxe4 {[%emt 0:00:00]} Qxe4 {[%emt 0:00:05]} 29. a4 {[%emt 0:00:00]} b6 {[%emt 0:07:39]} 30. g3 {[%emt 0:00:00]} h5 {[%emt 0:01:15]} 31. h4 {[%emt 0:00:00]} 1/2-1/2

[Event "Mitropa Cup Women 2024"]
[Site "Apolda"]
[Date "2024.02.20"]
[Round "6.16"]
[White "Mihelic, Vesna"]
[Black "Mihaljevic, Eva"]
[Result "1-0"]
[ECO "C01"]
[WhiteElo "2112"]
[BlackElo "2043"]
[Annotator "RC"]
[PlyCount "67"]
[EventDate "2024.02.15"]
[EventType "team-tourn"]
[EventCountry "GER"]
[SourceTitle "playchess.com"]
[Source "ChessBase"]
[SourceQuality "1"]
[WhiteTeam "Slovenia"]
[BlackTeam "Croatia"]
[WhiteTeamCountry "SLO"]
[BlackTeamCountry "CRO"]
[TimeControl "40/5400+30:1800+30"]

1. e4 {[%emt 0:00:03]} e6 {[%emt 0:00:06]} 2. d4 {[%emt 0:00:06]} d5 {[%emt 0:00:05]} 3. exd5 {[%emt 0:00:07]} exd5 {[%emt 0:00:06]} 4. Bd3 {[%emt 0:00:08]} Nf6 {[%emt 0:00:13]} 5. Nf3 {[%emt 0:00:50]} c5 {[%emt 0:00:18]} 6. O-O {[%emt 0:00:38]} c4 {[%emt 0:00:37]} 7. Re1+ {[%emt 0:00:12]} Be7 {[%emt 0:00:07]} 8. Bf1 {[%emt 0:00:17]} O-O {[%emt 0:00:28]} 9. b3 {[%emt 0:07:42]} cxb3 {[%emt 0:00:31]} 10. axb3 {[%emt 0:00:31]} Nc6 {[%emt 0:00:51]} 11. Ba3 {[%emt 0:18:11]} Bxa3 {[%emt 0:03:05]} 12. Nxa3 {[%emt 0:00:39]} Bg4 {[%emt 0:08:09]} 13. c3 {[%emt 0:06:54]} Ne4 {[%emt 0:01:17]} 14. Qd3 {[%emt 0:05:13]} Qf6 {[%emt 0:09:30]} 15. Qe3 {[%emt 0:03:55]} Bxf3 {[%emt 0:05:49]} 16. gxf3 {[%emt 0:07:49]} Ng5 {[%emt 0:01:02]} 17. Bg2 {[%emt 0:02:50]} Ne6 {[%emt 0:02:23]} 18. Kh1 {[%emt 0:11:04]} Nf4 {[%emt 0:11:44]} 19. Bf1 {[%emt 0:05:15]} Qg5 {[%emt 0:14:58]} 20. c4 {[%emt 0:07:26]} Rad8 {[%emt 0:08:44]} 21. c5 {[%emt 0:01:12]} f5 {[%emt 0:09:15]} 22. Nb5 {[%emt 0:05:35]} Rf6 {[%emt 0:05:26]} 23. Nc3 {[%emt 0:04:01]} Qh4 {[%emt 0:08:30]} 24. Ne2 {[%emt 0:05:12]} Ne6 {[%emt 0:02:42]} 25. f4 {[%emt 0:02:13]} Rh6 {[%emt 0:02:57]} 26. h3 {[%emt 0:01:00]} Qf6 {[%emt 0:01:31]} 27. Rad1 {[%emt 0:00:59]} Rh4 {[%emt 0:00:39]} 28. Bg2 {[%emt 0:00:45]} Kf7 {[%emt 0:01:56]} 29. Nc3 {[%emt 0:00:48]} Ne7 {[%emt 0:02:01]} 30. Nb5 {[%emt 0:02:26]} Rxf4 {[%emt 0:00:00]} 31. Nd6+ {[%emt 0:00:08]} Rxd6 {[%emt 0:00:23]} 32. cxd6 {[%emt 0:00:01]} Nc6 {[%emt 0:00:28]} 33. Bxd5 {[%emt 0:00:14]} Rh4 {[%emt 0:00:36]} 34. Bxe6+ {[%emt 0:00:43]} 1-0

[Event "Mitropa Cup Women 2024"]
[Site "Apolda"]
[Date "2024.02.20"]
[Round "6.17"]
[White "Iglesias, Yosha"]
[Black "Heinemann, Josefine"]
[Result "1/2-1/2"]
[ECO "D02"]
[WhiteElo "2260"]
[BlackElo "2361"]
[Annotator "TA"]
[PlyCount "112"]
[EventDate "2024.02.15"]
[EventType "team-tourn"]
[EventCountry "GER"]
[SourceTitle "playchess.com"]
[Source "ChessBase"]
[SourceQuality "1"]
[WhiteTeam "France"]
[BlackTeam "Germany"]
[WhiteTeamCountry "FRA"]
[BlackTeamCountry "GER"]
[TimeControl "40/5400+30:1800+30"]

{[%evp 9,112,-9,12,2,5,11,14,5,14,5,11,5,10,8,8,7,9,17,14,11,8,5,4,0,0,-4,0,0,0,-6,-9,-4,-6,-7,-8,-120,-118,-137,-127,-127,-105,-112,-115,-136,-127,-151,-151,-200,-184,-210,-204,-210,-199,-202,-185,-272,-243,-241,-241,-230,-214,-216,-216,-219,-63,-63,-51,-204,-204,-226,-226,-194,-210,-188,-104,-226,-226,-226,-201,-580,-12,-12,-12,-12,-12,-12,0,0,0,0,0,0,0,0,0,0,0,0,0,0,0,0,0,0,0]} 1. d4 {[%emt 0:00:04]} Nf6 {[%emt 0:00:06]} 2. Nf3 {[%emt 0:00:05]} d5 {[%emt 0:00:11]} 3. Bf4 {[%emt 0:00:06]} c5 {[%emt 0:00:25]} 4. e3 {[%emt 0:00:07]} Nc6 {[%emt 0:00:16]} 5. Nbd2 {[%emt 0:00:10]} Bg4 {[%emt 0:00:46]} 6. h3 {[%emt 0:01:42]} Bxf3 {[%emt 0:01:59]} 7. Nxf3 {[%emt 0:00:06]} e6 {[%emt 0:00:17]} 8. Be2 {[%emt 0:05:24]} Bd6 {[%emt 0:01:40]} 9. dxc5 {[%emt 0:00:39]} Bxf4 {[%emt 0:00:54]} 10. exf4 {[%emt 0:00:16]} Ne4 {[%emt 0:00:07]} 11. c3 {[%emt 0:07:12]} Nxc5 {[%emt 0:02:35]} 12. O-O {[%emt 0:08:40]} O-O {[%emt 0:00:39]} 13. g3 {[%emt 0:00:23]} Qb6 {[%emt 0:05:33]} 14. Rb1 {[%emt 0:01:11]} Rad8 {[%emt 0:03:16][%cal Od5d4]} 15. Kg2 {[%emt 0:04:26]} h6 {[%emt 0:06:07]} 16. Bd3 {[%emt 0:13:54]} d4 {[%emt 0:08:40]} 17. cxd4 {[%emt 0:04:33]} Nxd3 {[%emt 0:01:46]} 18. Qxd3 {[%emt 0:00:09]} Nxd4 {[%emt 0:00:07]} 19. Rfd1 {[%emt 0:07:49]} Nxf3 {[%emt 0:04:33]} 20. Qxf3 {[%emt 0:00:07]} Rxd1 {[%emt 0:00:15]} 21. Rxd1 {[%emt 0:07:00]} Qxb2 {[%emt 0:01:10]} 22. Qb3 {[%emt 0:04:04] Prevents a5.} (22. Rd7 $11) 22... Qxb3 $17 {[%emt 0:03:48]} 23. axb3 {[%emt 0:00:07][%mdl 4096] Endgame. KR-KR} Rc8 {[%emt 0:05:29]} 24. Rd7 {[%emt 0:05:25]} b5 {[%emt 0:01:50]} 25. Rxa7 {[%emt 0:00:55]} Rc3 {[%emt 0:00:10]} 26. b4 {[%emt 0:01:12]} Rc4 {[%emt 0:00:24]} 27. Rb7 {[%emt 0:02:33]} Rxb4 {[%emt 0:00:08]} 28. h4 {[%emt 0:00:22]} (28. Kf3 $17) 28... g6 $19 {[%emt 0:02:28]} 29. Kf3 {[%emt 0:01:49]} h5 $1 {[%emt 0:04:04]} 30. Ke3 {[%emt 0:02:01]} Rb1 {[%emt 0:04:12]} 31. Kf3 {[%emt 0:06:45]} b4 {[%emt 0:02:58]} 32. Ke3 {[%emt 0:00:10]} (32. Ke4 {was called for.}) 32... b3 {[%emt 0:00:57]} 33. Rb8+ {[%emt 0:02:22]} Kg7 {[%emt 0:00:09]} 34. Kf3 {[%emt 0:02:39]} f6 {[%emt 0:07:01]} 35. Rb7+ {[%emt 0:03:55]} Kf8 {[%emt 0:01:20]} 36. Ke3 {[%emt 0:00:05]} Ke8 $2 {[%emt 0:04:47]} (36... b2 $19 {Threatens to win with ...Re1+.} 37. Ke2 e5) 37. Kd3 $15 {[%emt 0:00:21]} Rb2 {[%emt 0:04:19]} 38. Kc4 $2 {[%emt 0:02:55]} (38. Kd4 $15) 38... Rc2+ $1 $19 {[%emt 0:02:02]} (38... Rxf2 39. Rb8+ Ke7 40. Rb7+ Kd6 41. Rb6+ Kc7 42. Rxb3 $17) 39. Kxb3 {[%emt 0:00:21]} Rxf2 {[%emt 0:00:07]} 40. Kc4 {[%emt 0:02:24]} Rf3 {[%emt 0:05:05]} 41. Kc5 {[%emt 0:31:35] [#]} Rd3 $1 {[%emt 0:30:45][%cal Oe8f8]} ({Don't do} 41... Rxg3 42. Kd6 $15) 42. Kc6 {[%emt 0:00:00]} (42. Ra7 $17) 42... e5 {[%emt 0:00:00]} (42... Rxg3 43. Kd6 $17) 43. fxe5 {[%emt 0:00:00]} fxe5 {[%emt 0:00:00][%cal Bf6e5,Be5e4,Be4e3,Be3e2][%mdl 32]} 44. Rg7 $2 {[%emt 0:00:00] [#]} (44. Kc5) 44... Rxg3 $2 {[%emt 0:00:00]} ({Better is} 44... e4 $1 $19 {[%cal Re4e3] Strongly threatening ...e3.} 45. Rxg6 Ke7 46. Rg7+ Ke6) 45. Kd5 $1 $11 {[%emt 0:00:00] The position is equal.} Kf8 {[%emt 0:00:00]} 46. Ra7 {[%emt 0:00:00]} Re3 {[%emt 0:00:00]} 47. Ke6 {[%emt 0:00:00]} e4 {[%emt 0:00:00] White must now prevent ...Rf3.} 48. Kf6 {[%emt 0:00:00][%cal Ra7a8]} Rf3+ {[%emt 0:00:00]} 49. Kxg6 {[%emt 0:00:00]} e3 {[%emt 0:00:00] ( -> ...e2)} 50. Ra4 {[%emt 0:00:00]} e2 {[%emt 0:00:00]} 51. Re4 $1 {[%emt 0:00:00]} Rf2 {[%emt 0:00:00]} 52. Re3 {[%emt 0:00:00]} Rg2+ {[%emt 0:00:00]} 53. Kf6 {[%emt 0:00:00]} Kg8 {[%emt 0:00:00]} 54. Re5 {[%emt 0:00:00]} Rh2 {[%emt 0:00:00]} 55. Kg6 {[%emt 0:00:00][%cal Re5e8]} Rg2+ {[%emt 0:00:00]} ({Stronger than} 55... Rxh4 56. Re8#) 56. Kf6 {[%emt 0:00:00]} Rh2 {[%emt 0:00:00] And White is the lucky defender.   Weighted Error Value: White=0.26 (precise) /Black=0.20 (precise) .  Missed win:     	---       	Black=1      Mistake:       	White=6     	Black=1      OK:         	White=20    	Black=22     Best:        	White=3     	Black=5      Strong:       	White=2     	Black=3} 1/2-1/2